bitfinex-derivatives/quotes_ETHF0:USTF0_20230701
["timestamp","ask_amount","ask_price","bid_price","bid_amount"]
[1688245050446,4.2416676,1923.3,1923.2,0.43503606]
[1688245050831,5.17762656,1923.3,1923.2,0.43503606]
[1688245052542,4.2416676,1923.3,1923.2,0.43503606]
[1688245061148,5.17762656,1923.3,1923.2,0.43503606]
[1688245061454,5.07362656,1923.3,1923.2,0.43503606]
[1688245077863,5.07362656,1923.3,1923.2,5.51053606]
[1688245078068,5.07362656,1923.3,1923.2,5.79725241]
[1688245078458,5.07362656,1923.3,1923.2,5.51053606]
[1688245082772,5.07362656,1923.3,1923.2,5.79725241]
[1688245083463,5.07362656,1923.3,1923.2,5.51053606]
[1688245084466,5.07362656,1923.3,1923.2,5.79725241]
[1688245085278,5.07362656,1923.3,1923.2,5.51053606]
[1688245086478,5.07362656,1923.3,1923.2,5.79725241]
[1688245087373,5.07362656,1923.3,1923.2,5.51053606]
[1688245088686,5.07362656,1923.3,1923.2,5.79725241]
[1688245089487,5.07362656,1923.3,1923.2,5.51053606]
[1688245091086,8.28142656,1923.3,1923.2,5.51053606]
[1688245094582,15.08449107,1923.3,1923.2,5.79725241]
[1688245096289,15.08449107,1923.3,1923.2,5.51053606]
[1688245097090,14.51700695,1923.3,1923.2,5.79725241]
[1688245097794,14.55876401,1923.3,1923.2,5.79725241]
[1688245098285,14.55876401,1923.3,1923.2,5.51053606]
[1688245099882,14.55876401,1923.3,1923.2,5.79725241]
[1688245101393,14.51700695,1923.3,1923.2,5.79725241]
[1688245101791,7.40197244,1923.3,1923.2,6.10924241]
[1688245102092,4.14897244,1923.3,1923.2,6.10924241]
[1688245103691,4.46094244,1923.3,1923.2,6.10924241]
[1688245112397,3.52498348,1923.3,1923.2,6.10924241]
[1688245112709,3.56674054,1923.3,1923.2,5.51053606]
[1688245113812,4.5026995,1923.3,1923.2,5.51053606]
[1688245114213,4.5026995,1923.3,1923.2,6.10924241]
[1688245116314,1.2948995,1923.3,1923.2,6.10924241]
[1688245116815,1.2948995,1923.3,1923.2,5.79725241]
[1688245117816,1.2948995,1923.3,1923.2,6.10924241]
[1688245118311,1.25314244,1923.3,1923.2,6.10924241]
[1688245119311,1.2948995,1923.3,1923.2,6.10924241]
[1688245120111,1.2948995,1923.3,1923.2,5.82252606]
[1688245120704,1.2948995,1923.3,1923.2,5.51053606]
[1688245122210,4.5478995,1923.3,1923.2,0.43503606]
[1688245122613,4.5478995,1923.3,1923.2,0.1]
[1688245122809,4.5478995,1923.3,1923.2,0.47965702]
[1688245127721,4.5478995,1923.3,1923.2,0.79165702]
[1688245128219,4.5478995,1923.3,1923.2,1.07837337]
[1688245131622,4.50614244,1923.3,1923.2,1.07837337]
[1688245133429,4.5478995,1923.3,1923.2,1.07837337]
[1688245135421,4.5478995,1923.3,1923.2,6.21977337]
[1688245135725,4.50614244,1923.3,1923.2,6.21977337]
[1688245137219,4.5478995,1923.3,1923.2,6.21977337]
[1688245139521,4.50614244,1923.3,1923.2,6.21977337]
[1688245140138,4.5478995,1923.3,1923.2,6.21977337]
[1688245140835,4.50614244,1923.3,1923.2,6.21977337]
[1688245148935,4.19417244,1923.3,1923.2,6.21977337]
[1688245150035,4.50615244,1923.3,1923.2,6.21977337]
[1688245150739,4.5479095,1923.3,1923.2,6.21977337]
[1688245151041,4.5479095,1923.3,1923.2,5.93305702]
[1688245151242,4.50615244,1923.3,1923.2,6.21977337]
[1688245155043,4.5479095,1923.3,1923.2,6.21977337]
[1688245156137,4.50615244,1923.3,1923.2,6.21977337]
[1688245156348,4.5479095,1923.3,1923.2,6.21977337]
[1688245156741,4.5479095,1923.3,1923.2,5.90777337]
[1688245157537,4.5479095,1923.3,1923.2,6.21977337]
[1688245158845,4.50615244,1923.3,1923.2,6.21977337]
[1688245159644,4.50615244,1923.3,1923.2,5.90777337]
[1688245160344,4.5479095,1923.3,1923.2,5.90777337]
[1688245161043,4.50615244,1923.3,1923.2,5.90777337]
[1688245162246,4.50615244,1923.3,1923.2,6.21977337]
[1688245162442,0.94117244,1923.3,1923.2,9.50177337]
[1688245162650,0.00521348,1923.3,1923.2,9.50177337]
[1688245163038,0.00521348,1923.3,1923.2,12.70957337]
[1688245163636,1.66761421,1923.4,1923.2,12.70957337]
[1688245164345,1.66761421,1923.4,1923.3,0.81779489]
[1688245164845,1.66761421,1923.4,1923.3,1.19740025]
[1688245171557,1.67278061,1923.4,1923.3,1.19740025]
[1688245180358,0.94112536,1923.4,1923.3,1.19740025]
[1688245180556,0.0051664,1923.4,1923.3,4.47940025]
[1688245180957,0.0051664,1923.4,1923.3,4.27336185]
[1688245181661,3.253,1923.6,1923.3,4.27336185]
[1688245181847,3.253,1923.6,1923.5,3.51974]
[1688245182256,3.67897332,1923.6,1923.5,3.68398721]
[1688245182553,3.68395573,1923.6,1923.5,3.68398721]
[1688245183154,3.99588573,1923.6,1923.5,3.68398721]
[1688245184559,3.56991241,1923.6,1923.5,3.68398721]
[1688245196978,3.56991241,1923.6,1923.5,4.10046901]
[1688245206078,3.25798241,1923.6,1923.5,4.76663996]
[1688245206269,0.00498241,1923.6,1923.5,4.76663996]
[1688245206786,0.31690241,1923.6,1923.5,4.76663996]
[1688245207083,0.00498241,1923.6,1923.5,4.76663996]
[1688245209780,0.00498241,1923.6,1923.5,8.04763996]
[1688245242812,0.00498241,1923.6,1923.5,7.88607169]
[1688245251221,0.00498241,1923.6,1923.5,4.67827169]
[1688245251418,0.00498241,1923.6,1923.5,7.88607169]
[1688245258327,0.04673947,1923.6,1923.5,6.963775]
[1688245258530,3.31073947,1923.6,1923.5,3.682775]
[1688245258826,3.31073947,1923.6,1923.5,3.370835]
[1688245259025,3.31073947,1923.6,1923.5,3.682785]
[1688245259826,3.62266947,1923.6,1923.5,3.682785]
[1688245260832,3.62266947,1923.6,1923.5,0.163035]
[1688245261128,3.62266947,1923.6,1923.5,0.474985]
[1688245261332,4.55862843,1923.6,1923.5,0.474985]
[1688245271851,3.62266947,1923.6,1923.5,0.474985]
[1688245272051,3.61166947,1923.6,1923.5,0.474985]
[1688245283665,3.61166947,1923.6,1923.5,0.76170135]
[1688245283859,3.29973947,1923.6,1923.5,0.76170135]
[1688245284260,3.25798241,1923.6,1923.5,0.76170135]
[1688245284863,3.56991241,1923.6,1923.5,0.76170135]
[1688245286169,3.25798241,1923.6,1923.5,0.76170135]
[1688245287862,3.56991241,1923.6,1923.5,0.76170135]
[1688245288869,3.25798241,1923.6,1923.5,0.76170135]
[1688245289266,3.29973947,1923.6,1923.5,0.76170135]
[1688245289471,3.29973947,1923.6,1923.5,0.474985]
[1688245289864,3.61166947,1923.6,1923.5,0.474985]
[1688245291564,3.29973947,1923.6,1923.5,0.163035]
[1688245291865,3.29973947,1923.6,1923.5,0.474985]
[1688245292869,3.29973947,1923.6,1923.5,0.163035]
[1688245294066,3.29973947,1923.6,1923.5,0.474985]
[1688245294269,3.25798241,1923.6,1923.5,0.76170135]
[1688245294466,3.56991241,1923.6,1923.5,0.76170135]
[1688245295684,3.61166947,1923.6,1923.5,0.76170135]
[1688245300273,3.56991241,1923.6,1923.5,0.76170135]
[1688245302071,0.31691241,1923.6,1923.5,0.76170135]
[1688245302871,0.04673947,1923.6,1923.5,0.76170135]
[1688245304782,0.00498241,1923.6,1923.5,0.76170135]
[1688245306785,0.35866947,1923.6,1923.5,0.474985]
[1688245310383,1.29462843,1923.6,1923.5,0.474985]
[1688245310881,0.35866947,1923.6,1923.5,0.163035]
[1688245311285,1.29462843,1923.6,1923.5,0.163035]
[1688245312189,4.56062843,1923.6,1923.5,0.163035]
[1688245313583,4.97856892,1923.6,1923.5,0.163035]
[1688245319994,11.78163343,1923.6,1923.5,0.163035]
[1688245323998,4.97856892,1923.6,1923.5,0.163035]
[1688245361332,11.78163343,1923.6,1923.5,0.163035]
[1688245369950,14.98943343,1923.6,1923.5,0.163035]
[1688245382158,14.98445102,1923.6,1923.5,0.163035]
[1688245382963,14.98901237,1923.6,1923.5,0.163035]
[1688245383173,16.53619013,1923.6,1923.5,0.163035]
[1688245387461,14.98901237,1923.6,1923.5,0.163035]
[1688245391776,11.78121237,1923.6,1923.5,0.163035]
[1688245398077,13.35928685,1923.6,1923.5,0.163035]
[1688245405883,11.78121237,1923.6,1923.5,0.163035]
[1688245422895,11.78121237,1923.6,1923.5,0.16270771]
[1688245459623,11.78121237,1923.6,1923.5,0.33263605]
[1688245500866,4.97814786,1923.6,1923.5,0.33263605]
[1688245510471,11.7930594,1923.6,1923.5,0.33263605]
[1688245511779,4.97814786,1923.6,1923.5,0.33263605]
[1688245511967,11.79291491,1923.6,1923.5,0.33263605]
[1688245512372,11.79291491,1923.6,1923.4,4.8044]
[1688245512679,9.16336978,1923.6,1923.5,0.24974677]
[1688245512982,21.465169,1923.6,1923.4,4.8044]
[1688245513273,4.50024922,1923.5,1923.4,4.8044]
[1688245513781,5.06773334,1923.5,1923.4,4.8044]
[1688245514171,5.0719481,1923.5,1923.4,5.05414494]
[1688245522872,8.2797481,1923.5,1923.4,5.05414494]
[1688245531591,15.09451515,1923.5,1923.4,5.05414494]
[1688245532187,8.2797481,1923.5,1923.4,5.05414494]
[1688245532385,15.09451515,1923.5,1923.4,5.05414494]
[1688245533892,14.52703103,1923.5,1923.4,5.65282129]
[1688245534087,7.71226398,1923.5,1923.4,5.65282129]
[1688245534685,7.75402104,1923.5,1923.4,5.36610494]
[1688245535494,7.75402104,1923.5,1923.4,5.65282129]
[1688245536381,7.75402104,1923.5,1923.4,5.36610494]
[1688245536795,7.75402104,1923.5,1923.4,5.65282129]
[1688245537787,14.56878809,1923.5,1923.4,5.65282129]
[1688245538695,14.56878809,1923.5,1923.4,5.05414494]
[1688245547298,14.56878809,1923.5,1923.4,5.34086129]
[1688245549495,14.56878809,1923.5,1923.4,5.05414494]
[1688245550704,14.56878809,1923.5,1923.4,5.34086129]
[1688245551998,14.52703103,1923.5,1923.4,5.34086129]
[1688245553300,14.56878809,1923.5,1923.4,5.05414494]
[1688245563311,7.75402104,1923.5,1923.1,0.2077993]
[1688245563504,3.264,1923.2,1923.1,5.1034993]
[1688245563699,7.83504628,1923.2,1923.1,5.1034993]
[1688245563899,15.22121194,1923.2,1923.1,0.2077993]
[1688245564201,15.22570863,1923.2,1923.0,0.2]
[1688245564401,7.70810922,1923.1,1923.0,0.2]
[1688245564704,7.70810922,1923.1,1923.0,0.41940749]
[1688245565102,7.71261427,1923.1,1923.0,0.41940749]
[1688245576009,8.12156005,1923.1,1923.0,0.41940749]
[1688245586104,8.12156005,1923.1,1922.9,0.20780011]
[1688245586307,4.86856005,1923.1,1923.0,0.21956139]
[1688245586507,8.13256005,1923.1,1923.0,0.21956139]
[1688245587011,8.74180123,1923.1,1923.0,0.21956139]
[1688245592022,8.74180123,1923.1,1922.6,10.558]
[1688245592316,6.4898,1922.7,1922.6,10.558]
[1688245592523,6.84362706,1922.7,1922.6,10.558]
[1688245593123,6.84810726,1922.7,1922.6,10.558]
[1688245593430,6.84810726,1922.7,1922.6,10.87009]
[1688245593627,6.84810726,1922.7,1922.6,10.97986779]
[1688245594831,6.84810726,1922.7,1922.6,10.66777779]
[1688245595032,6.84810726,1922.7,1922.6,10.97986779]
[1688245595633,6.84810726,1922.7,1922.6,10.66777779]
[1688245597729,6.84810726,1922.7,1922.6,10.97986779]
[1688245601235,7.26430441,1922.7,1922.6,10.97986779]
[1688245610641,7.26430441,1922.7,1922.6,11.26658414]
[1688245611937,7.26430441,1922.7,1922.6,10.97986779]
[1688245619341,8.19905586,1922.7,1922.6,10.97986779]
[1688245621342,8.19905586,1922.7,1922.6,5.38537779]
[1688245622849,8.1572988,1922.7,1922.6,5.98417414]
[1688245623439,8.19905586,1922.7,1922.6,5.98417414]
[1688245624150,4.6374288,1922.7,1922.6,5.98417414]
[1688245624447,3.70267735,1922.7,1922.6,9.19197414]
[1688245624647,3.2864802,1922.7,1922.6,9.19197414]
[1688245627538,3.5985402,1922.7,1922.6,9.19197414]
[1688245627745,3.64029726,1922.7,1922.6,5.69745779]
[1688245630351,3.32823726,1922.7,1922.6,5.98417414]
[1688245630649,3.2864802,1922.7,1922.6,5.98417414]
[1688245632152,3.5805402,1922.7,1922.6,5.98417414]
[1688245632352,3.31023726,1922.7,1922.6,5.98417414]
[1688245632556,3.62229726,1922.7,1922.6,5.98417414]
[1688245632750,3.5805402,1922.7,1922.6,5.98417414]
[1688245634758,3.62229726,1922.7,1922.6,5.69745779]
[1688245635143,3.62229726,1922.7,1922.6,5.98417414]
[1688245635553,3.62229726,1922.7,1922.6,5.69745779]
[1688245637750,3.62429726,1922.7,1922.6,5.69745779]
[1688245641753,3.62429726,1922.7,1922.6,5.98417414]
[1688245643958,4.03263875,1922.7,1922.6,5.98417414]
[1688245644456,4.03263875,1922.7,1922.6,5.69745779]
[1688245645255,4.03263875,1922.7,1922.6,5.98417414]
[1688245647253,4.03263875,1922.7,1922.6,5.69745779]
[1688245649553,4.03263875,1922.7,1922.6,5.98417414]
[1688245649957,4.03263875,1922.7,1922.6,5.69745779]
[1688245650559,4.03263875,1922.7,1922.6,0.42185779]
[1688245660788,4.03263875,1922.7,1922.6,5.70065779]
[1688245662681,4.03263875,1922.7,1922.6,5.98737414]
[1688245662886,4.03263875,1922.7,1922.6,5.70065779]
[1688245664389,4.03263875,1922.7,1922.6,5.98737414]
[1688245668195,3.99088169,1922.7,1922.6,5.98737414]
[1688245668495,4.03263875,1922.7,1922.6,5.98737414]
[1688245671296,4.03263875,1922.7,1922.6,5.70065779]
[1688245671495,4.03263875,1922.7,1922.6,5.98737414]
[1688245672196,4.03263875,1922.7,1922.6,5.70065779]
[1688245675904,4.03263875,1922.7,1922.6,5.98737414]
[1688245677006,4.03263875,1922.7,1922.6,5.70065779]
[1688245680300,7.24043875,1922.7,1922.6,5.38857779]
[1688245680698,7.24043875,1922.7,1922.6,5.70065779]
[1688245680906,8.1751902,1922.7,1922.6,5.70065779]
[1688245681904,8.1751902,1922.7,1922.6,5.38857779]
[1688245689609,8.1751902,1922.7,1922.6,5.98737414]
[1688245689610,7.82137314,1922.7,1922.6,5.98737414]
[1688245689908,4.61357314,1922.7,1922.6,5.98737414]
[1688245690117,3.67882169,1922.7,1922.6,5.98737414]
[1688245692216,3.67682169,1922.7,1922.6,5.98737414]
[1688245695016,3.98888169,1922.7,1922.6,5.98737414]
[1688245697110,4.03063875,1922.7,1922.6,5.98737414]
[1688245697910,3.98888169,1922.7,1922.6,5.98737414]
[1688245708723,3.67682169,1922.7,1922.6,5.98737414]
[1688245710226,3.98888169,1922.7,1922.6,5.98737414]
[1688245712122,4.00688169,1922.7,1922.6,5.98737414]
[1688245719030,4.04863875,1922.7,1922.6,5.98737414]
[1688245719230,4.04863875,1922.7,1922.6,5.70065779]
[1688245720431,4.04863875,1922.7,1922.6,5.98737414]
[1688245721933,4.00688169,1922.7,1922.6,6.39765533]
[1688245732645,4.04863875,1922.7,1922.6,6.39765533]
[1688245732939,4.04863875,1922.7,1922.6,5.98737414]
[1688245733131,4.04863875,1922.7,1922.6,5.70065779]
[1688245733333,4.04863875,1922.7,1922.6,5.98737414]
[1688245734539,4.00688169,1922.7,1922.6,5.98737414]
[1688245735344,4.04863875,1922.7,1922.6,5.98737414]
[1688245736143,4.00688169,1922.7,1922.6,5.98737414]
[1688245740344,4.04863875,1922.7,1922.6,5.98737414]
[1688245742153,4.03063875,1922.7,1922.6,5.98737414]
[1688245744449,3.98888169,1922.7,1922.6,5.98737414]
[1688245745144,3.98888169,1922.7,1922.6,0.10977779]
[1688245745347,4.03063875,1922.7,1922.6,0.10977779]
[1688245745553,8.1731902,1922.7,1922.6,0.10977779]
[1688245747256,14.99187174,1922.7,1922.6,0.10977779]
[1688245748456,8.1731902,1922.7,1922.6,0.10977779]
[1688245760573,7.23843875,1922.7,1922.6,0.10977779]
[1688245761169,7.19668169,1922.7,1922.6,0.42185779]
[1688245761374,0.41282169,1922.7,1922.6,0.70857414]
[1688245761978,0.41282169,1922.7,1922.6,0.59879635]
[1688245762175,0.41282169,1922.7,1922.6,0.7081558]
[1688245762682,0.72488169,1922.7,1922.6,0.7081558]
[1688245772183,3.97788169,1922.7,1922.6,0.7081558]
[1688245772776,4.01963875,1922.7,1922.6,0.7081558]
[1688245772970,4.01963875,1922.7,1922.6,0.42143945]
[1688245773283,4.01950009,1922.7,1922.6,0.42143945]
[1688245775177,3.97774303,1922.7,1922.6,0.7081558]
[1688245776383,4.01950009,1922.7,1922.6,0.7081558]
[1688245779482,3.97774303,1922.7,1922.6,0.7081558]
[1688245786099,3.56940154,1922.7,1922.6,0.7081558]
[1688245789903,3.6111586,1922.7,1922.6,0.7081558]
[1688245790402,3.56940154,1922.7,1922.6,0.7081558]
[1688245801014,3.25734154,1922.7,1922.6,0.7081558]
[1688245802113,0.00434154,1922.7,1922.6,0.7081558]
[1688245806008,0.00434154,1922.7,1922.6,1.04556892]
[1688245806212,0.31640154,1922.7,1922.6,1.04556892]
[1688245806616,1.25115299,1922.7,1922.6,1.04556892]
[1688245806822,1.25115299,1922.7,1922.6,0.59879635]
[1688245808717,0.93909299,1922.7,1922.6,0.59879635]
[1688245808917,1.25115299,1922.7,1922.6,0.59879635]
[1688245811421,1.25115299,1922.7,1922.6,1.04358222]
[1688245814237,1.29291005,1922.7,1922.6,0.75686587]
[1688245814435,1.29291005,1922.7,1922.6,0.44478587]
[1688245815124,4.50071005,1922.7,1922.6,0.44478587]
[1688245816035,4.50071005,1922.7,1922.6,0.75686587]
[1688245816539,4.45895299,1922.7,1922.6,1.04358222]
[1688245816727,4.45895299,1922.7,1922.6,6.34128222]
[1688245825050,0.93909299,1922.7,1922.6,6.34128222]
[1688245825431,0.93909299,1922.7,1922.6,9.62328222]
[1688245825635,0.00434154,1922.7,1922.6,9.62328222]
[1688245826333,4.45459145,1922.9,1922.6,9.62328222]
[1688245826532,4.45459145,1922.9,1922.8,0.31205]
[1688245826934,4.87577028,1922.9,1922.8,0.63860032]
[1688245827134,4.87577028,1922.9,1922.8,0.92531667]
[1688245827434,4.87995854,1922.9,1922.8,5.78541667]
[1688245828039,4.56791854,1922.9,1922.8,9.06741667]
[1688245828239,4.14673971,1922.9,1922.8,9.06741667]
[1688245828441,3.21198826,1922.9,1922.8,9.06741667]
[1688245830346,3.52401826,1922.9,1922.8,5.78541667]
[1688245830541,4.18849677,1922.9,1922.8,5.78541667]
[1688245830842,4.14673971,1922.9,1922.8,5.78541667]
[1688245831548,4.45876971,1922.9,1922.8,5.78541667]
[1688245839651,4.45876971,1922.9,1922.8,6.20071102]
[1688245840844,1.25096971,1922.9,1922.8,6.20071102]
[1688245841145,0.31621826,1922.9,1922.8,6.20071102]
[1688245841445,1.25096971,1922.9,1922.8,5.9805322]
[1688245842148,1.25096971,1922.9,1922.8,9.2625322]
[1688245855152,1.29272677,1922.9,1922.8,4.11571585]
[1688245855348,1.39672677,1922.9,1922.8,4.11571585]
[1688245857060,1.39672677,1922.9,1922.8,4.4024322]
[1688245860656,1.35496971,1922.9,1922.8,4.4024322]
[1688245862157,4.62096971,1922.9,1922.8,1.1204322]
[1688245863864,4.51696971,1922.9,1922.8,1.1204322]
[1688245864668,3.58221826,1922.9,1922.8,1.1204322]
[1688245864864,4.51696971,1922.9,1922.8,1.1204322]
[1688245866659,4.55872677,1922.9,1922.8,0.83371585]
[1688245867265,4.51696971,1922.9,1922.8,1.1204322]
[1688245867661,4.55872677,1922.9,1922.8,1.1204322]
[1688245872069,4.51696971,1922.9,1922.8,1.1204322]
[1688245875779,4.55872677,1922.9,1922.8,1.1204322]
[1688245877080,4.55872677,1922.9,1922.8,0.70513785]
[1688245877266,4.55872677,1922.9,1922.8,0.4184215]
[1688245882080,4.55872677,1922.9,1922.8,5.56513785]
[1688245882286,4.51696971,1922.9,1922.8,5.56513785]
[1688245886882,4.55872677,1922.9,1922.8,5.56513785]
[1688245887089,4.97510329,1922.9,1922.8,5.56513785]
[1688245889485,4.93334623,1922.9,1922.8,5.56513785]
[1688245891285,4.20493971,1922.9,1922.8,5.56513785]
[1688245893275,4.51696971,1922.9,1922.8,5.56513785]
[1688245904898,4.55872677,1922.9,1922.8,5.56513785]
[1688245906602,4.51696971,1922.9,1922.8,5.56513785]
[1688245910802,4.55872677,1922.9,1922.8,5.56513785]
[1688245911507,4.51696971,1922.9,1922.8,5.56513785]
[1688245912096,4.55872677,1922.9,1922.8,5.56513785]
[1688245912301,4.55872677,1922.9,1922.8,5.2784215]
[1688245913905,4.55872677,1922.9,1922.8,5.56513785]
[1688245914797,4.51696971,1922.9,1922.8,5.56513785]
[1688245916100,4.55872677,1922.9,1922.8,5.56513785]
[1688245916508,4.51696971,1922.9,1922.8,5.56513785]
[1688245918200,4.55872677,1922.9,1922.8,5.56513785]
[1688245920208,4.55872677,1922.9,1922.8,0.4184215]
[1688245920409,3.62397532,1922.9,1922.8,0.4184215]
[1688245920612,4.55872677,1922.9,1922.8,0.4184215]
[1688245922509,4.55872677,1922.9,1922.8,5.2775215]
[1688245922908,4.55872677,1922.9,1922.8,5.56423785]
[1688245924311,4.55872677,1922.9,1922.8,5.2775215]
[1688245929612,4.55872677,1922.9,1922.8,5.56423785]
[1688245932216,4.55872677,1922.9,1922.8,5.2775215]
[1688245933821,4.55872677,1922.9,1922.8,5.56423785]
[1688245938718,4.55872677,1922.9,1922.8,5.2775215]
[1688245940320,4.55872677,1922.9,1922.8,5.56423785]
[1688245949630,4.51696971,1922.9,1922.8,5.56423785]
[1688245949817,3.58221826,1922.9,1922.8,5.56423785]
[1688245951229,3.62397532,1922.9,1922.8,5.56423785]
[1688245951823,3.62397532,1922.9,1922.8,5.2775215]
[1688245952722,3.58221826,1922.9,1922.8,5.56423785]
[1688245958531,3.62397532,1922.9,1922.8,5.56423785]
[1688245963135,3.62397532,1922.9,1922.8,5.2775215]
[1688245963636,4.55872677,1922.9,1922.8,5.2775215]
[1688245964434,4.55872677,1922.9,1922.8,5.56423785]
[1688245967538,4.20493971,1922.9,1922.8,5.56423785]
[1688245967740,0.93893971,1922.9,1922.8,5.56423785]
[1688245968238,0.00418826,1922.9,1922.8,5.56423785]
[1688245972142,3.28618826,1922.9,1922.8,5.56423785]
[1688245973840,3.59821826,1922.9,1922.8,5.56423785]
[1688245978238,3.28618826,1922.9,1922.8,5.56423785]
[1688245979837,0.00418826,1922.9,1922.8,12.05303785]
[1688245980144,0.00418826,1922.9,1922.8,11.94666635]
[1688245980941,0.00418826,1922.9,1922.8,17.19626635]
[1688245981442,0.93475145,1923.2,1922.8,17.19626635]
[1688245981640,0.93475145,1923.2,1923.1,0.312]
[1688245981844,0.93475145,1923.2,1923.1,0.59871635]
[1688245982235,0.93475145,1923.2,1923.1,1.10453124]
[1688245982434,0.93886192,1923.2,1923.1,6.32183124]
[1688245985045,0.00411047,1923.2,1923.1,6.32183124]
[1688245989453,0.31609047,1923.2,1923.1,5.81601635]
[1688245989654,0.31609047,1923.2,1923.1,0.59871635]
[1688245992348,0.00411047,1923.2,1923.1,0.59871635]
[1688245994455,0.00411047,1923.2,1923.1,1.01728978]
[1688245996851,0.00411047,1923.2,1923.1,4.29928978]
[1688246006260,0.35784753,1923.2,1923.1,4.29928978]
[1688246007054,0.31609047,1923.2,1923.1,4.29928978]
[1688246007459,0.00411047,1923.2,1923.1,4.29928978]
[1688246019176,0.00411047,1923.2,1923.1,9.13238978]
[1688246020879,0.00411047,1923.2,1923.1,4.29928978]
[1688246022979,0.31609047,1923.2,1923.1,4.29928978]
[1688246040292,0.00411047,1923.2,1923.1,4.29928978]
[1688246040489,1e-08,1923.2,1923.1,7.55528978]
[1688246041396,0.00392607,1923.2,1923.1,7.55528978]
[1688246041593,0.00392607,1923.2,1923.1,12.70098978]
[1688246049198,0.00392607,1923.2,1923.1,17.89898978]
[1688246049703,0.00392607,1923.2,1923.1,12.70098978]
[1688246052197,0.00392607,1923.2,1923.1,9.44498978]
[1688246053093,0.00392607,1923.2,1923.1,10.96978099]
[1688246062107,0.00392607,1923.2,1923.1,14.25078099]
[1688246071109,0.52337053,1923.2,1923.1,14.25078099]
[1688246071308,0.27465582,1923.2,1923.1,14.25078099]
[1688246071509,0.00392607,1923.2,1923.1,14.25078099]
[1688246076923,0.23881627,1923.2,1923.1,14.25078099]
[1688246083238,0.0077997,1923.3,1923.1,14.25078099]
[1688246083537,0.0077997,1923.3,1923.2,7.30659489]
[1688246084140,0.0077997,1923.3,1923.2,12.32719489]
[1688246085732,0.0077997,1923.3,1923.2,6.80078]
[1688246085733,0.04955676,1923.3,1923.2,6.80078]
[1688246089032,0.04955676,1923.3,1923.2,7.08749635]
[1688246089429,0.04955676,1923.3,1923.2,6.80078]
[1688246089634,0.04955676,1923.3,1923.2,3.59298]
[1688246090837,0.23192386,1923.3,1923.2,3.59298]
[1688246091644,0.23575015,1923.3,1923.2,3.59298]
[1688246091846,0.23575015,1923.3,1923.2,3.87969635]
[1688246092439,0.23575015,1923.3,1923.2,3.59298]
[1688246093738,0.23575015,1923.3,1923.2,3.87969635]
[1688246094132,0.23575015,1923.3,1923.2,3.59298]
[1688246095945,0.19399309,1923.3,1923.2,3.87969635]
[1688246100451,0.23575015,1923.3,1923.2,3.87969635]
[1688246100855,0.23575015,1923.3,1923.2,3.59298]
[1688246106160,0.23575015,1923.3,1923.2,3.87969635]
[1688246110366,0.19399309,1923.3,1923.2,3.87969635]
[1688246116873,0.19399309,1923.3,1923.2,8.78619635]
[1688246117170,0.23575015,1923.3,1923.2,8.78619635]
[1688246121572,0.23575015,1923.3,1923.2,8.49948]
[1688246122265,0.23575015,1923.3,1923.2,11.70728]
[1688246122464,0.23575015,1923.3,1923.2,11.99399635]
[1688246124776,0.23575015,1923.3,1923.2,11.70728]
[1688246125372,0.23575015,1923.3,1923.2,11.99399635]
[1688246126270,0.54772015,1923.3,1923.2,11.70728]
[1688246128577,0.54772015,1923.3,1923.2,3.59298]
[1688246130667,3.81172015,1923.3,1923.2,0.31198]
[1688246144089,3.81172015,1923.3,1923.2,0.59869635]
[1688246144481,3.45799309,1923.3,1923.2,0.59869635]
[1688246144975,3.45799309,1923.3,1923.2,5.67609635]
[1688246146375,3.49975015,1923.3,1923.2,5.67609635]
[1688246147482,3.81172015,1923.3,1923.2,5.38938]
[1688246152183,0.54772015,1923.3,1923.2,5.38938]
[1688246155486,0.54772015,1923.3,1923.2,5.67609635]
[1688246156694,0.54772015,1923.3,1923.2,5.38938]
[1688246163498,0.54772015,1923.3,1923.2,5.67609635]
[1688246163701,0.54772015,1923.3,1923.2,5.38938]
[1688246167508,0.54772015,1923.3,1923.2,0.31198]
[1688246172109,3.80072015,1923.3,1923.2,0.31198]
[1688246179317,3.80072015,1923.3,1923.2,0.59869635]
[1688246179523,3.75896309,1923.3,1923.2,5.62739635]
[1688246182324,3.80072015,1923.3,1923.2,5.62739635]
[1688246182523,3.80072015,1923.3,1923.2,5.34068]
[1688246187331,3.80072015,1923.3,1923.2,5.62739635]
[1688246195423,3.80072015,1923.3,1923.2,5.34068]
[1688246200044,3.80072015,1923.3,1923.2,5.62739635]
[1688246210253,3.75896309,1923.3,1923.2,5.62739635]
[1688246213349,3.80072015,1923.3,1923.2,5.62739635]
[1688246218963,3.80072015,1923.3,1923.2,5.34068]
[1688246221260,3.82972015,1923.3,1923.1,3.93837343]
[1688246221463,4.14346412,1923.2,1923.1,3.93837343]
[1688246221966,4.32515548,1923.2,1923.1,3.93837343]
[1688246222458,4.32842428,1923.2,1923.1,3.93837343]
[1688246225057,4.32842428,1923.2,1923.1,3.62637343]
[1688246225366,4.32842428,1923.2,1923.1,3.93837343]
[1688246226476,4.32842428,1923.2,1923.1,0.73057343]
[1688246226964,5.26317573,1923.2,1923.1,0.73057343]
[1688246228161,4.32842428,1923.2,1923.1,0.73057343]
[1688246235772,5.26317573,1923.2,1923.1,0.73057343]
[1688246250878,1.43169161,1923.2,1923.1,1.01728978]
[1688246251180,0.49694016,1923.2,1923.1,1.01728978]
[1688246253781,3.76294016,1923.2,1923.1,1.01728978]
[1688246256283,3.76294016,1923.2,1923.1,0.73057343]
[1688246263200,3.76294016,1923.2,1923.1,0.83457343]
[1688246263397,3.76294016,1923.2,1923.1,1.12128978]
[1688246267596,3.80469722,1923.2,1923.1,1.12128978]
[1688246269297,3.80469722,1923.2,1923.1,1.01728978]
[1688246270797,3.80469722,1923.2,1923.1,0.73057343]
[1688246271904,3.80469722,1923.2,1923.1,1.01728978]
[1688246272105,0.53869722,1923.2,1923.1,1.01728978]
[1688246273706,0.49694016,1923.2,1923.1,1.01728978]
[1688246287710,0.8635736,1923.3,1923.1,4.40228978]
[1688246287910,0.8635736,1923.3,1923.2,7.30759489]
[1688246288104,3.266,1923.5,1923.2,12.09069489]
[1688246288310,3.266,1923.5,1923.2,17.13599489]
[1688246288511,0.00317795,1923.4,1923.3,0.28671635]
[1688246288814,0.00317795,1923.4,1923.3,1.10450124]
[1688246292113,0.00317795,1923.4,1923.3,4.38650124]
[1688246295418,0.14495665,1923.4,1923.3,4.38650124]
[1688246299621,0.14495665,1923.4,1923.3,4.79280933]
[1688246341350,0.45690665,1923.4,1923.3,4.50609298]
[1688246341545,3.75166371,1923.4,1923.3,0.71827809]
[1688246346555,3.75166371,1923.4,1923.3,3.92607809]
[1688246348462,3.75166371,1923.4,1923.3,4.21279444]
[1688246359165,3.70990665,1923.4,1923.3,4.21279444]
[1688246359773,3.75166371,1923.4,1923.3,4.21279444]
[1688246362561,3.75166371,1923.4,1923.3,3.92607809]
[1688246363070,3.75166371,1923.4,1923.3,4.21279444]
[1688246363964,3.70990665,1923.4,1923.3,4.21279444]